Cogmind - Beta 13 X3 @@@ ROGUE MODE // 2024.02.20 @ 22:10:04 Player: IzRey Result: Destroyed by H-61 Shepherd with Heavy Assault Cannon Performance ------------- Evolutions (2) 1000 Regions Visited (5) 1000 Robots Destroyed (13) 65 Value Destroyed (137) 137 Prototype IDs (2) 40 Alien Tech Used (0) 0 Bonus (-6) -6 TOTAL SCORE: 2236 Bonus ------- Friendly Fire -6 Cogmind --------- Core Integrity 0/550 Matter 228/300 Energy 24/100 System Corruption 0% Temperature Cool (0) Movement Core (50) Location -8/Materials Parts ------- > --- POWER (1) -------- (None) > --- PROPULSION (2) --- (None) > --- UTILITY (6) ------ Improved Terrain Scan Processor > --- WEAPON (2) ------- (None) > --- INVENTORY (5) ---- Faulty Experimental Sensor Array Improved Targeting Computer Thief Drone Bay (3/3) Grenade Launcher Heavy Mace Peak State ------------ > --- POWER ------------ Light Ion Engine > --- PROPULSION ------- (None) > --- UTILITY ---------- Weight Redist. System Improved Sensor Array Improved Terrain Scanner Improved Terrain Scan Processor > --- WEAPON ----------- Heavy Mace Scythe > --- INVENTORY -------- Experimental Sensor Array Thief Drone Bay Light Assault Rifle Grenade Launcher [Rating: 19] Favorites ----------- Power Light Ion Engine Engine Light Ion Engine Propulsion None Utility Improved Terrain Scanner Device Improved Terrain Scanner Processor Improved Terrain Scan Processor Weapon Light Assault Rifle Ballistic Gun Light Assault Rifle Launcher Grenade Launcher Impact Weapon Heavy Mace Slashing Weapon Scythe Build | -11 -10 -10 -10 -9 -8 ------- Run | Yrd Mat Min Exi Min Mat Slots Evolved 4 | . . . . . 4 Power . | . . . . . . Propulsion . | . . . . . . Utility 4 | . . . . . 4 Weapon . | . . . . . . Parts Attached 21 | 5 . 1 . 8 7 Power 1 | . . . . . 1 Engine 1 | . . . . . 1 Core . | . . . . . . Reactor . | . . . . . . Propulsion . | . . . . . . Treads . | . . . . . . Leg . | . . . . . . Wheel . | . . . . . . Hover . | . . . . . . Flight . | . . . . . . Utility 10 | 3 . . . 5 2 Device 9 | 3 . . . 5 1 Storage . | . . . . . . Processor 1 | . . . . . 1 Hackware . | . . . . . . Protection . | . . . . . . Artifact . | . . . . . . Weapon 10 | 2 . 1 . 3 4 Energy Gun . | . . . . . . Energy Cannon . | . . . . . . Ballistic Gun 4 | 2 . . . 1 1 Ballistic Cannon . | . . . . . . Launcher 4 | . . 1 . 2 1 Special Weapon . | . . . . . . Impact Weapon 1 | . . . . . 1 Slashing Weapon 1 | . . . . . 1 Piercing Weapon . | . . . . . . Special Melee Weapon . | . . . . . . Unidentified Prototypes 2 | . . . . 2 . Parts Lost 7 | . . . . 1 6 Power 1 | . . . . . 1 Propulsion . | . . . . . . Utility 3 | . . . . . 3 Weapon 3 | . . . . 1 2 Highest Loss Streak 6 | . . . . 1 6 To Critical Strikes . | . . . . . . Average Slot Usage (%) 38 | . 42 43 42 23 46 Engine 1 | . . . . . 6 Device 23 | . 28 28 28 12 23 Processor 1 | . . . . . 6 Ballistic Gun 9 | . 14 14 14 4 2 Launcher 2 | . . . . 6 1 Naked Turns 2 | . . . . 2 . Heaviest Build 8 | 3 3 6 3 4 8 Greatest Support 9 | 3 3 3 3 9 9 Greatest Overweight (x) 1 | . . 1 . 1 1 Average Overweight (x) . | . . . . . . Largest Inventory Capacity 5 | 5 5 5 5 5 5 Average Capacity 5 | 5 5 5 5 5 5 Most Carried 5 | 2 4 5 5 5 5 Average Carried 4 | 1 2 4 5 4 4 Final Capacity 5 | 5 5 5 5 5 5 Final Carried 5 | 2 4 5 5 5 5 Class Distribution -------------------- 88% | Mutant 11% | Scout Dominant Class ---------------- Mutant | -10/Materials Mutant | -10/Mines Mutant | -10/Exiles Mutant | -9/Mines Scout | -8/Materials Resources | -11 -10 -10 -10 -9 -8 ----------- Run | Yrd Mat Min Exi Min Mat Matter Collected 431 | 297 . 12 . 98 24 Remotely . | . . . . . . Salvage Created 260 | 175 . 12 . . 73 Parts 23 | 10 . 5 . . 8 Haulers Intercepted . | . . . . . . Recyclers Shooed . | . . . . . . Parts Field Recycled . | . . . . . . Retrieved Matter . | . . . . . . Parts Self-Destructed . | . . . . . . Prevented . | . . . . . . Kills | -11 -10 -10 -10 -9 -8 ------- Run | Yrd Mat Min Exi Min Mat Combat Hostiles Destroyed 9 | . . 3 . . 6 Melee 2 | . . . . . 2 AOE 7 | . . 3 . . 4 Classes Destroyed 3 | 2 . 1 . . . Tunneler 3 | 3 . . . . . Recycler 1 | 1 . . . . . Swarmer 9 | . . 3 . . 6 Best Kill Streak 4 | 2 . 3 . . 4 Combat Bots Only 4 | . . 3 . . 4 Max Kills in Single Turn 4 | 1 . 3 . . 4 Gunslinging . | . . . . . . Exploded 4 | . . 3 . . 4 Melee 1 | . . . . . 1 Uniques/NPCs Destroyed . | . . . . . . Combat | -11 -10 -10 -10 -9 -8 -------- Run | Yrd Mat Min Exi Min Mat Hostile Shots Fired 95 | . 5 7 . 2 81 Missed 23 | . . 2 . 1 20 Damage Taken 958 | . 69 46 . 42 801 Core 641 | . 58 10 . 6 567 Absorbed by Shields . | . . . . . . Core Remaining (%) 85 | 100 . . . 70 . Volleys Fired 33 | 25 . 1 . 3 4 Largest 2 | 2 . 2 . 1 1 Hottest 50 | 40 . 50 . 30 30 Shots Fired 56 | 47 . 2 . 3 4 Gun 50 | 47 . 1 . . 2 Cannon . | . . . . . . Launcher 6 | . . 1 . 3 2 Special . | . . . . . . Kinetic 50 | 47 . 1 . . 2 Thermal . | . . . . . . Explosive 6 | . . 1 . 3 2 Electromagnetic . | . . . . . . Robot Hit Streak 6 | 6 . 3 . . 4 Robot Miss Streak 5 | 5 . . . . . Penetration Max . | . . . . . . Secondary Targets . | . . . . . . Shots Hit Robots 31 | 25 . 2 . . 4 Core Hits 19 | 9 . 4 . . 6 Critical Kills . | . . . . . . Critical Parts Destroyed . | . . . . . . Critical Strikes . | . . . . . . Melee Attacks 7 | . . . . . 7 Impact 1 | . . . . . 1 Slashing 6 | . . . . . 6 Piercing . | . . . . . . Sneak Attacks . | . . . . . . Combat Hostiles . | . . . . . . Follow-up Attacks . | . . . . . . Damage Inflicted 557 | 197 . 91 . 6 263 Guns 213 | 197 . 6 . . 10 Cannons . | . . . . . . Explosions 248 | . . 85 . 6 157 Melee 96 | . . . . . 96 Ramming . | . . . . . . Kinetic 213 | 197 . 6 . . 10 Thermal . | . . . . . . Explosive 248 | . . 85 . 6 157 Electromagnetic . | . . . . . . Impact . | . . . . . . Slashing 96 | . . . . . 96 Piercing . | . . . . . . Highest Corruption 4 | . . . . 4 . Average Corruption 4 | . . . . 4 . Corruption Purged . | . . . . . . Corruption Blocked . | . . . . . . Effects 3 | . . . . 3 . Message Errors 1 | . . . . 1 . Matter Fused 2 | . . . . 2 . Overload Shots . | . . . . . . Overflow Damage 3 | . . . . 3 . Projectiles . | . . . . . . Explosions 3 | . . . . 3 . Melee . | . . . . . . Knockbacks . | . . . . . . Impact . | . . . . . . Kinetic . | . . . . . . Secondary . | . . . . . . Self-Inflicted Damage 48 | . . . . 28 20 Shots 3 | . . . . 2 1 Rammed . | . . . . . . Targets Rammed . | . . . . . . Kicked . | . . . . . . Crushed . | . . . . . . Highest Temperature 2 | . 2 . . . . Average Temperature 2 | . 2 . . . . Received Heat Transfer 180 | . 54 . . . 126 Siege Activations . | . . . . . . Robots Corrupted . | . . . . . . Combat Hostiles . | . . . . . . Parts Fried . | . . . . . . Impact Corruptions . | . . . . . . Robots Melted . | . . . . . . Combat Hostiles . | . . . . . . Parts Melted . | . . . . . . Heat Transferred . | . . . . . . Parts Sabotaged . | . . . . . . Parts Stolen . | . . . . . . Parts Stripped . | . . . . . . Power Chain Reactions . | . . . . . . Alert | -11 -10 -10 -10 -9 -8 ------- Run | Yrd Mat Min Exi Min Mat Peak Influence 371 | 20 21 89 . 22 371 Initial 13 | . 13 7 . . 8 Average 64 | 8 18 17 . 18 211 Maximum Alert Level 1 | . . . . . 1 Low Security (%) 84 | 100 100 100 . 100 34 Level 1 16 | . . . . . 65 Level 2 . | . . . . . . Level 3 . | . . . . . . Level 4 . | . . . . . . Level 5 . | . . . . . . High Security . | . . . . . . Max Security . | . . . . . . Squads Dispatched 2 | . . . . . 2 Investigation . | . . . . . . Extermination . | . . . . . . Reinforcement 2 | . . . . . 2 Assault . | . . . . . . Garrison . | . . . . . . Intercept . | . . . . . . Searches Triggered . | . . . . . . Construction Impeded . | . . . . . . Haulers Reinforced . | . . . . . . Active Scanning Responses . | . . . . . . Cargo Convoy Interrupts . | . . . . . . Stealth | -11 -10 -10 -10 -9 -8 --------- Run | Yrd Mat Min Exi Min Mat Distress Signals 3 | . . . . 1 2 Communications Jammed . | . . . . . . Distress Signals . | . . . . . . Times Spotted 40 | . 3 3 . 1 33 Peak Tracking Total 18 | . 4 3 . 1 18 Tactical Retreats 2 | . . . . . 2 Traps | -11 -10 -10 -10 -9 -8 ------- Run | Yrd Mat Min Exi Min Mat Traps Triggered . | . . . . . . Indirectly . | . . . . . . Trap Hack Attempts . | . . . . . . Triggered . | . . . . . . Disarmed . | . . . . . . Reprogrammed . | . . . . . . Reused . | . . . . . . Traps Extracted . | . . . . . . Installed . | . . . . . . Triggered . | . . . . . . Machines | -11 -10 -10 -10 -9 -8 ---------- Run | Yrd Mat Min Exi Min Mat Machines Disabled 3 | . . . . 1 2 Max in Single Turn 1 | . . . . 1 1 Machines Repaired . | . . . . . . Machines Dismantled . | . . . . . . Machines Sabotaged . | . . . . . . Overloaded Fab Kills . | . . . . . . Hacking | -11 -10 -10 -10 -9 -8 --------- Run | Yrd Mat Min Exi Min Mat Machines Accessed 6 | . 1 1 3 . 1 Terminals 3 | . 1 1 . . 1 Fabricators . | . . . . . . Repair Stations . | . . . . . . Recycling Units . | . . . . . . Scanalyzers . | . . . . . . Garrison Access . | . . . . . . Total Hacks 13 | . 3 4 3 . 3 Successful 9 | . 2 1 3 . 3 Failed 4 | . 1 3 . . . Catastrophic . | . . . . . . Database Lockouts . | . . . . . . Manual 6 | . 3 3 . . . Terminals 10 | . 3 4 . . 3 Fabricators . | . . . . . . Repair Stations . | . . . . . . Recycling Units . | . . . . . . Scanalyzers . | . . . . . . Garrison Access . | . . . . . . Terminal Hacks 8 | . 1 1 3 . 3 Record 3 | . . . 3 . . Branch Access Points 1 | . 1 . . . . Locate Traps 1 | . . . . . 1 Dispatch Records 1 | . . . . . 1 Hauler Manifests 1 | . . . . . 1 Zone Layout 1 | . . 1 . . . Fabricator Hacks . | . . . . . . Repair Station Hacks . | . . . . . . Recycling Unit Hacks . | . . . . . . Scanalyzer . | . . . . . . Garrison Access Hacks . | . . . . . . Unauthorized Hacks 1 | . 1 . . . . Terminals 1 | . 1 . . . . Botnet 1 | . 1 . . . . Fabricators . | . . . . . . Repair Stations . | . . . . . . Recycling Units . | . . . . . . Scanalyzers . | . . . . . . Garrison Access . | . . . . . . Data Cores Recovered . | . . . . . . Used . | . . . . . . Hacking Detections 3 | . 1 1 . . 1 Full Trace Events . | . . . . . . Feedback Events . | . . . . . . Feedback Blocked . | . . . . . . Robot Schematics Acquired . | . . . . . . Robots Built . | . . . . . . Authchips . | . . . . . . Time . | . . . . . . Total Robot Build Rating . | . . . . . . Part Schematics Acquired . | . . . . . . Parts Built . | . . . . . . Authchips . | . . . . . . Time . | . . . . . . Total Part Build Rating . | . . . . . . Parts Repaired . | . . . . . . Time . | . . . . . . Parts Recycled . | . . . . . . Recycled Matter . | . . . . . . Retrieved Matter . | . . . . . . Retrieved Components . | . . . . . . Parts Scanalyzed . | . . . . . . Part Schematics Acquired . | . . . . . . Parts Damaged . | . . . . . . Bothacking | -11 -10 -10 -10 -9 -8 ------------ Run | Yrd Mat Min Exi Min Mat Used RIF Installer . | . . . . . . Robots Hacked . | . . . . . . Non-combat . | . . . . . . Combat . | . . . . . . Robot Hacks Applied . | . . . . . . Relay Couplers Released . | . . . . . . Fabnet Peak Effective % . | . . . . . . Robots Rewired . | . . . . . . Allies Hacked . | . . . . . . Hacks Repelled . | . . . . . . Allies | -11 -10 -10 -10 -9 -8 -------- Run | Yrd Mat Min Exi Min Mat Total Allies . | . . . . . . Largest Group . | . . . . . . Highest-Rated Group . | . . . . . . Highest-Rated Ally . | . . . . . . Total Orders . | . . . . . . Ally Attacks . | . . . . . . Total Damage . | . . . . . . Kills . | . . . . . . Allies Corrupted . | . . . . . . Allies Melted . | . . . . . . Intel | -11 -10 -10 -10 -9 -8 ------- Run | Yrd Mat Min Exi Min Mat Robot Analysis Total . | . . . . . . Derelict Logs Recovered 3 | . . 1 . 2 . Drone Launches . | . . . . . . Drone Recoveries . | . . . . . . Exploration | -11 -10 -10 -10 -9 -8 ------------- Run | Yrd Mat Min Exi Min Mat Turns Passed 1188 | 92 34 288 313 246 215 Spaces Moved 1968 | 39 63 551 626 384 305 Core 1968 | 39 63 551 626 384 305 Treads . | . . . . . . Legs . | . . . . . . Wheels . | . . . . . . Hover . | . . . . . . Flight . | . . . . . . Fastest Speed 50 | 50 50 50 50 50 50 Average Speed 51 | 50 50 50 50 51 53 Slowest Speed 100 | 50 50 100 50 100 100 Overloaded Moves . | . . . . . . Propulsion Burnouts . | . . . . . . Robots Hopped . | . . . . . . Cave-ins Triggered . | . . . . . . Exploration Rate (%) 51 | 4 18 92 93 63 37 Regions Visited 5 Branch Regions 3 Pre-discovered Areas 2 | . . 1 . 1 . Known Exits Taken 1 | . 1 . . . . Unknown Exits Taken 4 | 1 . 1 1 1 . Scrap Searched 2 | . . 1 . 1 . Spaces Dug 28 | . . . . 15 13 Terrain Destroyed 49 | . . 7 . 23 19 Melee 4 | . . . . . 4 Projectile . | . . . . . . AOE 45 | . . 7 . 23 15 Terrain Rammed . | . . . . . . Walls Destroyed . | . . . . . . Machines Disabled . | . . . . . . Actions | -11 -10 -10 -10 -9 -8 --------- Run | Yrd Mat Min Exi Min Mat Total 2085 | 72 64 556 625 428 340 Wait 41 | . . 2 . 26 13 Move 1963 | 38 62 550 625 383 305 Hop . | . . . . . . Pick Up 8 | 2 2 1 . 2 1 Fast Attach 11 | 4 . . . 3 4 Attach 8 | 1 . 1 . 4 2 Detach 6 | 1 . 1 . 2 2 Swap 2 | . . . . 1 1 Drop 6 | 1 . . . 4 1 Fire 33 | 25 . 1 . 3 4 Melee 7 | . . . . . 7 Ram . | . . . . . . Kick . | . . . . . . Crush . | . . . . . . Escape Stasis . | . . . . . . Rewire . | . . . . . . Trap . | . . . . . . Miscellaneous . | . . . . . . Route ------- -11/Scrapyard -10/Materials (discovered 2 exits: *Min x2) -10/Mines (discovered 3 exits: [*Mat x2] / *Exi) -10/Exiles (discovered 2 exits: [*Min x2]) -9/Mines -8/Materials (discovered 3 exits: Fac x2 / Sto) History --------- Turn | Location | Event 11 | -11/Scrapyard | Discovered new exit (range 15) 93 | -11/Scrapyard | Entered Materials 102 | -10/Materials | Identified exit to Mines 127 | -10/Materials | Entered Mines 183 | -10/Mines | Discovered new exit (range 15) 301 | -10/Mines | Build established: Mutant 340 | -10/Mines | Learned location of Storage (-8) 392 | -10/Mines | Learned 8 Materials zone layouts 400 | -10/Mines | Discovered new exit (range 14) 413 | -10/Mines | Deemed a non-threat by the Exiles lab entrance 413 | -10/Mines | Discovered new exit (range 5) 415 | -10/Mines | Entered Exiles 415 | -10/Exiles | Found Exiles lab abandoned 661 | -10/Exiles | Discovered new exit (range 14) 721 | -10/Exiles | Discovered new exit (range 15) 728 | -10/Exiles | Entered Mines 730 | -9/Mines | Assembled infested the area 735 | -9/Mines | Assisted by a Guerilla fighting off Assembled 755 | -9/Mines | Joined a pair of Derelicts in attacking an 0b10 outpost 789 | -9/Mines | Found the Drone Emporium 803 | -9/Mines | Found Prototype Device 803 | -9/Mines | Identified Thief Drone Bay 873 | -9/Mines | A weapon hastily lodged in a ceiling crevice suddenly fell to the ground 913 | -9/Mines | Found a damaged Exp. Sensor Array with a note attached 914 | -9/Mines | Found Prototype Device 914 | -9/Mines | Identified Exp. Sensor Array 942 | -9/Mines | Learned 4 Materials zone layouts 950 | -9/Mines | Learned location of Zion (-6) 958 | -9/Mines | Discovered new exit (range 7) 974 | -9/Mines | Entered Materials 974 | -8/Materials | Evolved 4 slots: Utility x4 975 | -8/Materials | Identified exit to Storage 975 | -8/Materials | Identified exit to Factory 1185 | -8/Materials | Core integrity fell below 50% 1188 | -8/Materials | Core integrity fell below 20% 1189 | -8/Materials | Destroyed by H-61 Shepherd with Heavy Assault Cannon Last Messages --------------- 01151_ ALERT: Hostiles spotted, dispatching reinforcements to Terminal M012. 01151_ O-24 Administrator locks terminal. 01151_ K-01 Serf collects debris. 01163_ S-10 Pest destroyed. 01164_ Imp. Sensor Array destroyed. 01168_ S-10 Pest destroyed. 01168_ Lgt. Ion Engine destroyed. 01169_ Imp. Terrain Scanner destroyed. 01170_ Acquired 20 matter. 01173_ Lgt. Assault Rifle destroyed. 01174_ Critical hit (Burn: +37). 01174_ Scythe destroyed. 01176_ S-10 Pest destroyed. 01180_ Acquired Imp. Targeting Computer. 01180_ W-25 Informer sends out distress signal. 01185_ C-30 ARC bursts open, deploying its payload. 01185_ S-10 Pest unfolds itself. 01189_ Weight Redist. System destroyed. 01189_ Critical hit (Blast). Map ----- +----------------------------------------------------+ | ########?####### ####?#????#?##?# """ #?#??? | | ?????????#?????# # ########??#??#""""" #????? | | ##?????????????# # #????##""""" ! ##???? | | #?????????????# # """ #?????#""""" #???#? | | #?????????????# # """ #??#??# """ #????? | | #?????????????# =# """ #?##### |##???? | | #?????????#???# %# #?????###""T""####?#?? | | #?????????????# [# #???????#"""""#?????#? | | #?????????????# + !! #????##?#######?????#? | | ##?????????????# # != #???#?#??????????????? | | ???????????????# # #???#??##?#???#??????# | | ###?????######## ##########??????????##??##??#?? | | #?????# s #??????????????????????? | | " #?????# ss #??????????????????????? | | " #?????# T w [[% #??????????????????????? | | " #?????### [ ###########????????????? | | #######?# !# #????????????? | | # #?# w # #????????????? | | # """ #?# # """ #????????????? | | +## """ #?# ] !!! % # """"" #????????????? | | + """ #?# !!= + """"" #????????????? | | ## #?# !!= # """"" #????????????? | | ## #?# ####" "#### # """ #????????????? | | ## #?# #??#"Y"#??# # #????????????? | | ####+##### #??#"""#??# ###########????????????? | | T ########### %@#??????????????????????? | | +#+## # # #??????????????????????? | | # # # #??????????????????????? | | # # # #??????????????????????? | | "" # # + ################???????? | | S"" # # #ss ## ## ##???????? | | "" # # # %## # #???????? | | ##### ######## s## # #???????? | | # ####### w# # ########? | | " # H #? | | " / < #? | | " ###### ! #? | | " #????# ####### ######################? | | #????#######?????#######?????????????????????? | | #####????????????????????????????????????????????? | | ?????????????????????????????????????????????????? | | | | | | | | | | | | | | | | | | | +----------------------------------------------------+ Best States ------------- Heat Dissipation 31 Energy Generation 10 Energy Capacity 125 Matter Stores 300 Matter Capacity 300 Sight Range 16 Robot Scan Range 15 Terrain Scan Range 16 Terrain Scan Density 110 Additional Mass Support 6 Evasion (%) 50 Item Schematics ----------------- None Robot Schematics ------------------ None Fabricated ------------ Nothing Alien Tech Used ----------------- None Achievements -------------- None Challenges ------------ None Game ------ Seed EnergyDeuteriumMapper Manual? 0 Play Time 00:22:16 Cumulative 601.0 hours Start 2024.02.20 @ 21:48:01 End 2024.02.20 @ 22:10:04 Sessions 1 Manual Loads 0 Difficulty Rogue Special Mode None Game No. 103 Rogue 86 Adventurer 17 Explorer 0 Win Type - Total 3 Types 3/0/0/0/0/0/0/0/0 Lore% 58 Gallery% 68 Achievement% 58 Wizard Run 0 Options --------- Layout 2 ASCII 0 Keyboard 1 Movement Vi Keybinds 0 Fullscreen 1 Font 18/X11 Map View 76x59 Zoom Use 0% Tactical HUD 1 Map Filters NONE Filters NONE Steam 1 RUN: 7b7ebefa-983d-4a48-aaab-ca1c5082e9c8